bitfinex-derivatives/quotes_BTCF0:USTF0_20250929
["timestamp","ask_amount","ask_price","bid_price","bid_amount"]
[1759168423920,2.46520818,114210.0,114200.0,1.51059516]
[1759168424423,2.46520818,114210.0,114200.0,1.53404811]
[1759168427225,2.46520818,114210.0,114200.0,1.50276688]
[1759168427828,2.46520818,114210.0,114200.0,1.59027478]
[1759168428031,2.46472818,114210.0,114200.0,1.62155601]
[1759168428924,1.65128818,114210.0,114200.0,1.22155601]
[1759168429126,2.46424818,114210.0,114200.0,1.22155601]
[1759168431117,2.46424818,114210.0,114200.0,0.78633418]
[1759168431323,2.46400818,114210.0,114200.0,1.11059516]
[1759168431523,2.46400818,114210.0,114200.0,1.10059516]
[1759168431730,1.65128818,114210.0,114200.0,1.11059516]
[1759168431924,2.46368818,114210.0,114200.0,1.11059516]
[1759168432321,2.46368818,114210.0,114200.0,1.45836865]
[1759168432923,2.46368818,114210.0,114200.0,1.54587655]
[1759168434433,2.46368818,114210.0,114200.0,1.45836865]
[1759168435028,2.46312818,114210.0,114200.0,1.45836865]
[1759168435831,0.01278,114220.0,114210.0,0.0875002]
[1759168436031,0.01282,114230.0,114220.0,0.0974926]
[1759168436331,0.11772705,114230.0,114220.0,2.06902365]
[1759168436533,0.11772705,114230.0,114220.0,2.46902365]
[1759168436732,0.11772705,114230.0,114220.0,2.81676736]
[1759168437630,0.11772705,114230.0,114220.0,2.82550445]
[1759168438134,0.11772705,114230.0,114220.0,2.81676736]
[1759168440129,0.01282,114230.0,114220.0,2.81676736]
[1759168441135,0.1003049,114230.0,114220.0,2.81676736]
[1759168441532,0.1232249,114230.0,114220.0,0.40202121]
[1759168441732,0.87096861,114230.0,114220.0,0.73193028]
[1759168441937,0.87096861,114230.0,114220.0,0.70854371]
[1759168442134,0.5232249,114230.0,114220.0,1.05628742]
[1759168443137,0.87096861,114230.0,114220.0,0.70854371]
[1759168444134,0.87096861,114230.0,114220.0,0.3608]
[1759168448244,0.87096861,114230.0,114220.0,0.70854371]
[1759168450042,1.68464861,114230.0,114220.0,0.3608]
[1759168450244,1.3369049,114230.0,114220.0,0.70854371]
[1759168450446,1.68464861,114230.0,114220.0,0.70854371]
[1759168451750,1.68464861,114230.0,114220.0,0.3608]
[1759168451958,1.68464861,114230.0,114220.0,0.70854371]
[1759168453953,1.71615457,114230.0,114220.0,0.70854371]
[1759168455155,0.90247457,114230.0,114220.0,0.70854371]
[1759168455359,1.71503457,114230.0,114220.0,0.70854371]
[1759168455957,1.71467457,114230.0,114220.0,0.70854371]
[1759168458157,0.90247457,114230.0,114220.0,0.70854371]
[1759168458363,1.71455457,114230.0,114220.0,0.70854371]
[1759168459063,1.71455457,114230.0,114220.0,0.3608]
[1759168459253,0.50247457,114230.0,114220.0,0.70854371]
[1759168459450,1.36062203,114230.0,114220.0,1.05628742]
[1759168459654,1.31387457,114230.0,114220.0,0.70854371]
[1759168462865,1.31387457,114230.0,114220.0,0.3608]
[1759168463160,1.31387457,114230.0,114220.0,0.70854371]
[1759168463764,1.31339457,114230.0,114220.0,0.70854371]
[1759168463965,1.28188861,114230.0,114220.0,0.70854371]
[1759168465864,1.28188861,114230.0,114220.0,0.3608]
[1759168466166,1.28188861,114230.0,114210.0,0.38418657]
[1759168466167,0.1237826,114220.0,114210.0,0.38418657]
[1759168466366,0.8365457,114220.0,114210.0,0.3608]
[1759168466667,0.48880199,114220.0,114210.0,0.71854371]
[1759168468363,0.8365457,114220.0,114210.0,0.71854371]
[1759168468669,0.86805166,114220.0,114210.0,0.3608]
[1759168469357,1.26805166,114220.0,114200.0,0.3608]
[1759168469564,1.28133391,114210.0,114200.0,0.3608]
[1759168469866,1.31283987,114210.0,114200.0,0.3608]
[1759168470363,1.31283987,114210.0,114200.0,0.70854371]
[1759168470965,1.35075034,114210.0,114200.0,0.71454371]
[1759168471369,1.3822563,114210.0,114200.0,0.71454371]
[1759168472162,0.22471259,114210.0,114200.0,0.71454371]
[1759168472468,1.00252663,114210.0,114200.0,1.57318199]
[1759168472663,1.00252663,114210.0,114200.0,1.48567399]
[1759168472873,1.00252663,114210.0,114200.0,1.08567399]
[1759168473663,1.35027034,114210.0,114200.0,0.73793028]
[1759168473874,1.35027034,114210.0,114200.0,0.3668]
[1759168474057,1.35027034,114210.0,114200.0,0.73793028]
[1759168474562,1.35019034,114210.0,114200.0,0.73793028]
[1759168474967,1.35019034,114210.0,114200.0,0.74793028]
[1759168477792,1.00196663,114210.0,114200.0,1.49567399]
[1759168479568,1.00196663,114210.0,114200.0,1.09567399]
[1759168482173,1.34971034,114210.0,114200.0,0.74793028]
[1759168484980,1.34971034,114210.0,114200.0,0.40018657]
[1759168485174,0.19320663,114210.0,114200.0,1.57318189]
[1759168485379,0.19320663,114210.0,114200.0,1.59101653]
[1759168485581,0.19320663,114210.0,114200.0,1.50350863]
[1759168485876,0.19320663,114210.0,114200.0,1.59101653]
[1759168486079,0.2108156,114210.0,114200.0,1.50350863]
[1759168486279,0.2108156,114210.0,114200.0,1.49359963]
[1759168486674,0.2108156,114210.0,114200.0,1.09359963]
[1759168486873,0.2108156,114210.0,114200.0,1.06237842]
[1759168487275,1.0207756,114210.0,114200.0,1.08583357]
[1759168487486,1.0207756,114210.0,114200.0,1.08583451]
[1759168488376,1.0207756,114210.0,114200.0,1.08583481]
[1759168493389,1.0207756,114210.0,114200.0,0.39034739]
[1759168493589,1.0207756,114210.0,114200.0,1.08583481]
[1759168494288,1.0207756,114210.0,114200.0,0.76935587]
[1759168494886,1.0207756,114210.0,114200.0,0.4215686]
[1759168495090,1.0207756,114210.0,114200.0,0.76935587]
[1759168496980,0.2108156,114210.0,114200.0,0.76935587]
[1759168497182,1.0196956,114210.0,114200.0,0.76935587]
[1759168497488,0.2108156,114210.0,114200.0,0.76935587]
[1759168497682,1.0194156,114210.0,114200.0,0.76935587]
[1759168497882,1.0193356,114210.0,114200.0,0.76935587]
[1759168498081,1.0193356,114210.0,114200.0,0.76938255]
[1759168498082,0.2108156,114210.0,114200.0,0.76938255]
[1759168498287,1.0192156,114210.0,114200.0,0.76938255]
[1759168498892,0.2108156,114210.0,114200.0,0.76938255]
[1759168499090,1.0192156,114210.0,114200.0,0.76938255]
[1759168500293,1.0192156,114210.0,114200.0,0.74589948]
[1759168503892,1.0192156,114210.0,114200.0,0.73816626]
[1759168506391,0.0875079,114200.0,114190.0,0.38428799]
[1759168506688,0.0875079,114200.0,114190.0,0.3608]
[1759168506689,0.54877931,114200.0,114190.0,0.3608]
[1759168506894,0.1227355,114190.0,114180.0,0.38428799]
[1759168507194,1.27796277,114190.0,114180.0,0.3608]
[1759168507894,0.96169359,114190.0,114180.0,0.3608]
[1759168508090,1.27796277,114190.0,114180.0,0.3608]
[1759168508692,1.27096277,114190.0,114180.0,0.3608]
[1759168508891,1.30248086,114190.0,114180.0,0.3608]
[1759168509196,1.27096277,114190.0,114180.0,0.36076]
[1759168509499,1.27096277,114190.0,114180.0,0.37276]
[1759168510096,1.27966078,114190.0,114180.0,0.37276]
[1759168511594,0.1157355,114190.0,114180.0,1.09057454]
[1759168511804,0.9226955,114190.0,114180.0,1.09057454]
[1759168512991,0.1157355,114190.0,114180.0,1.09057454]
[1759168513197,0.7896155,114190.0,114180.0,1.09057454]
[1759168513492,0.1157355,114190.0,114180.0,1.09057454]
[1759168513696,0.7891755,114190.0,114180.0,1.09057454]
[1759168513996,0.7891755,114190.0,114180.0,1.11406253]
[1759168515286,0.7891755,114190.0,114180.0,0.76627526]
[1759168515993,0.11005672,114200.0,114180.0,1.51406253]
[1759168516199,0.1233179,114200.0,114190.0,0.73069727]
[1759168517091,0.1233179,114200.0,114190.0,0.38291]
[1759168517399,0.1233179,114200.0,114190.0,0.73069727]
[1759168518793,0.5233179,114200.0,114190.0,0.3608]
[1759168519098,0.1227855,114190.0,114180.0,0.38424799]
[1759168519298,0.1217855,114190.0,114180.0,0.39424799]
[1759168519596,0.46957277,114190.0,114180.0,0.39424799]
[1759168519798,1.67645277,114190.0,114180.0,0.38424799]
[1759168520097,1.67645277,114190.0,114180.0,0.36076]
[1759168520290,1.67645277,114190.0,114180.0,0.36776]
[1759168520695,1.67645277,114190.0,114180.0,0.36076]
[1759168524200,1.67645277,114190.0,114180.0,0.36072]
[1759168525701,1.68145277,114190.0,114180.0,0.36072]
[1759168526399,0.0875232,114180.0,114170.0,0.3608616]
[1759168526603,0.80782774,114180.0,114170.0,6.16e-05]
[1759168526793,0.46004047,114180.0,114170.0,6.16e-05]
[1759168527797,0.46704047,114180.0,114170.0,6.16e-05]
[1759168528208,1.21482774,114180.0,114170.0,6.16e-05]
[1759168528598,0.86004047,114180.0,114170.0,0.0010616]
[1759168528794,0.87762889,114180.0,114170.0,0.0010616]
[1759168529295,1.22541616,114180.0,114170.0,0.0010616]
[1759168530604,1.28390889,114180.0,114170.0,0.0234416]
[1759168531109,1.28390889,114180.0,114170.0,0.0010616]
[1759168534910,1.68390889,114180.0,114170.0,0.0010616]
[1759168535109,2.03169616,114180.0,114170.0,0.0010616]
[1759168535811,1.68390889,114180.0,114170.0,0.0010616]
[1759168536212,2.03169616,114180.0,114170.0,0.0010616]
[1759168536510,0.1226885,114160.0,114150.0,0.38428799]
[1759168536710,1.27599577,114160.0,114150.0,0.3608]
[1759168537106,0.1228162,114150.0,114140.0,0.40666799]
[1759168537300,0.47066792,114150.0,114140.0,0.38318]
[1759168538713,0.47266792,114150.0,114140.0,0.38318]
[1759168538914,0.46066792,114150.0,114140.0,0.38318]
[1759168539410,0.5315494,114150.0,114140.0,0.38318]
[1759168539613,0.5295494,114150.0,114140.0,0.3608]
[1759168540114,0.53824194,114150.0,114140.0,0.3608]
[1759168543205,0.12622746,114140.0,114130.0,0.75456727]
[1759168543406,0.01737366,114140.0,114130.0,1.26561676]
[1759168543799,0.01737366,114140.0,114130.0,1.29683797]
[1759168544000,0.01737366,114140.0,114130.0,1.26561676]
[1759168544513,0.02737366,114140.0,114130.0,1.26761676]
[1759168544812,0.11492746,114140.0,114130.0,1.26761676]
[1759168548115,0.11492746,114140.0,114130.0,1.29883797]
[1759168549917,0.11492746,114140.0,114130.0,1.2988124]
[1759168550118,0.11492746,114140.0,114130.0,1.27534998]
[1759168553122,0.11492746,114140.0,114130.0,1.24412877]
[1759168553818,0.15849483,114150.0,114140.0,0.1013838]
[1759168554121,0.08761065,114150.0,114140.0,2.04747695]
[1759168555221,0.01306445,114150.0,114140.0,2.05147695]
[1759168555919,0.10061065,114150.0,114140.0,2.05147695]
[1759168556116,0.12249065,114150.0,114140.0,0.40074]
[1759168556316,0.48342728,114150.0,114140.0,0.43205958]
[1759168556515,0.88342728,114150.0,114140.0,0.81373929]
[1759168557115,0.88342728,114150.0,114140.0,0.46555266]
[1759168557421,0.88342728,114150.0,114140.0,0.81373929]
[1759168557815,0.88342728,114150.0,114140.0,0.46555266]
[1759168558018,0.88342728,114150.0,114140.0,0.81373929]
[1759168558218,0.87067728,114150.0,114140.0,0.81373929]
[1759168559118,0.12249065,114150.0,114140.0,1.16192592]
[1759168560523,0.12249065,114150.0,114140.0,1.24947982]
[1759168560827,0.12249065,114150.0,114140.0,1.16192592]
[1759168561325,0.12249065,114150.0,114140.0,0.55310656]
[1759168561624,0.12249065,114150.0,114140.0,1.24947982]
[1759168562224,0.12249065,114150.0,114140.0,0.55310656]
[1759168562524,0.12249065,114150.0,114140.0,1.24947982]
[1759168563326,0.12249065,114150.0,114140.0,1.16192592]
[1759168563818,0.48342728,114150.0,114140.0,0.46555266]
[1759168564023,0.48342728,114150.0,114140.0,0.79990929]
[1759168565219,0.48342728,114150.0,114140.0,0.76858971]
[1759168570223,0.48342728,114150.0,114140.0,0.75858971]
[1759168570421,1.68826728,114150.0,114140.0,0.39829308]
[1759168570625,1.68826728,114150.0,114140.0,0.004]
[1759168570820,2.03645391,114150.0,114140.0,0.004]
[1759168572723,2.067972,114150.0,114140.0,0.004]
[1759168573223,2.03645391,114150.0,114140.0,0.004]
[1759168573924,0.0875539,114140.0,114130.0,0.02349308]
[1759168574130,0.1234715,114130.0,114120.0,0.71898663]
[1759168574329,1.27649813,114130.0,114120.0,0.71898663]
[1759168574634,1.34788244,114130.0,114120.0,0.74160663]
[1759168575332,1.73394689,114130.0,114120.0,0.3608]
[1759168576232,1.73394689,114130.0,114120.0,0.3748]
[1759168576730,1.73394689,114130.0,114120.0,0.3608]
[1759168576932,1.74194689,114130.0,114120.0,0.3608]
[1759168577427,1.74282113,114130.0,114120.0,0.3608]
[1759168577624,1.75682113,114130.0,114120.0,0.3608]
[1759168578024,1.75282113,114130.0,114120.0,0.3608]
[1759168579128,1.4046345,114130.0,114120.0,0.38342]
[1759168579332,1.75282113,114130.0,114120.0,0.38342]
[1759168579730,1.75282113,114130.0,114120.0,0.73160663]
[1759168580033,1.75282113,114130.0,114120.0,0.38342]
[1759168580230,1.7702385,114130.0,114120.0,0.38342]
[1759168581431,1.7702385,114130.0,114120.0,0.02262]
[1759168581626,2.1310385,114130.0,114120.0,0.02262]
[1759168581831,2.1310385,114130.0,114110.0,0.02309]
[1759168581832,0.1233892,114120.0,114110.0,0.02309]
[1759168582032,0.81982691,114120.0,114110.0,0.03309]
[1759168582223,0.81982691,114120.0,114110.0,0.02309]
[1759168582834,0.83182691,114120.0,114110.0,0.02309]
[1759168583630,0.83082691,114120.0,114110.0,0.02309]
[1759168584226,0.1234046,114100.0,114090.0,0.76931971]
[1759168584426,0.48891346,114100.0,114090.0,0.77931971]
[1759168585025,0.49747863,114100.0,114090.0,0.77931971]
[1759168585231,0.48891346,114100.0,114090.0,0.77931971]
[1759168585427,0.48891346,114100.0,114090.0,0.79931971]
[1759168586225,0.48891346,114100.0,114090.0,0.77931971]
[1759168586426,0.48891346,114100.0,114090.0,0.76982663]
[1759168586626,0.48891346,114100.0,114090.0,0.79330443]
[1759168587234,0.49758751,114100.0,114090.0,0.79330443]
[1759168587737,0.49758751,114100.0,114090.0,0.78330443]
[1759168588233,0.49758751,114100.0,114090.0,0.78130443]
[1759168588532,0.50258751,114100.0,114090.0,0.78130443]
[1759168590129,0.50258751,114100.0,114090.0,0.39964]
[1759168590130,0.85077414,114100.0,114090.0,0.39964]
[1759168590339,0.85077414,114100.0,114090.0,0.4331178]
[1759168590529,0.50258751,114100.0,114090.0,0.78130443]
[1759168593243,0.50258751,114100.0,114090.0,0.4331178]
[1759168593441,0.50258751,114100.0,114090.0,0.78130443]
[1759168594034,0.50258751,114100.0,114090.0,0.4331178]
[1759168594235,0.50258751,114100.0,114090.0,0.78130443]
[1759168595537,0.14116088,114100.0,114090.0,0.78130443]
[1759168595743,0.04490223,114100.0,114090.0,1.21708326]
[1759168595936,0.10990673,114100.0,114090.0,1.61708326]
[1759168596239,0.10990673,114100.0,114090.0,1.26889663]
[1759168598247,0.10990673,114100.0,114090.0,1.30021621]
[1759168599147,0.10990673,114100.0,114090.0,2.08165841]
[1759168599446,0.10990673,114100.0,114090.0,1.68165841]
[1759168600146,0.10990673,114100.0,114090.0,1.70515807]
[1759168600848,0.10990673,114100.0,114090.0,2.0533447]
[1759168601146,0.10990673,114100.0,114090.0,2.02984504]
[1759168601450,0.09264895,114100.0,114090.0,2.02984504]
[1759168604346,0.09264895,114100.0,114090.0,1.68165841]
[1759168606346,0.09264895,114100.0,114090.0,2.02984504]
[1759168610648,0.09264895,114100.0,114090.0,1.68165841]
[1759168611045,0.09264895,114100.0,114090.0,1.65033883]
[1759168611350,0.09264895,114100.0,114090.0,1.99852546]
[1759168611852,0.09264895,114100.0,114090.0,1.65033883]
[1759168612151,0.09264895,114100.0,114090.0,1.69731049]
[1759168612650,0.09264895,114100.0,114090.0,1.60971829]
[1759168613350,0.11018187,114100.0,114090.0,1.60971829]
[1759168616246,0.11018187,114100.0,114090.0,1.60996964]
[1759168619357,0.11018187,114100.0,114090.0,1.69756184]
[1759168622345,0.11018187,114100.0,114090.0,1.60996964]
[1759168622551,0.11018187,114100.0,114090.0,1.26153166]
[1759168622857,0.11018187,114100.0,114090.0,1.60996964]
[1759168624157,0.11018187,114100.0,114090.0,1.59441406]
[1759168624846,0.11018187,114100.0,114090.0,1.61797863]
[1759168625452,0.12344187,114100.0,114090.0,1.61797863]
[1759168625853,0.14500187,114100.0,114090.0,0.81305863]
[1759168626458,0.13174187,114100.0,114090.0,0.81305863]
[1759168626858,0.13174187,114100.0,114090.0,0.46462065]
[1759168627055,0.13174187,114100.0,114090.0,0.81305863]
[1759168627261,0.14500187,114100.0,114090.0,0.81305863]
[1759168629161,0.14500187,114100.0,114090.0,0.45087065]
[1759168629858,0.14500187,114100.0,114090.0,0.46477065]
[1759168630167,0.14500187,114100.0,114090.0,0.81320863]
[1759168631167,0.13174187,114100.0,114090.0,0.81320863]
[1759168631557,0.11018187,114100.0,114090.0,1.24923881]
[1759168631757,0.11018187,114100.0,114090.0,0.87723626]
[1759168632374,0.13174187,114100.0,114090.0,0.87723626]
[1759168632663,0.13174187,114100.0,114090.0,0.78964406]
[1759168632863,0.13174187,114100.0,114090.0,0.44120608]
[1759168633064,0.13174187,114100.0,114090.0,0.78964406]
[1759168633365,0.13174187,114100.0,114090.0,0.81320695]
[1759168634165,0.13174187,114100.0,114090.0,0.83661572]
[1759168636366,0.13174187,114100.0,114090.0,0.89279184]
[1759168637268,0.11018187,114100.0,114090.0,0.89279184]
[1759168637667,0.13173187,114100.0,114090.0,0.89279184]
[1759168640772,0.13173187,114100.0,114090.0,0.53199184]
[1759168640971,0.13173187,114100.0,114090.0,1.25359184]
[1759168655090,0.11018187,114100.0,114090.0,1.25359184]
[1759168656085,0.11018187,114100.0,114090.0,1.60202982]
[1759168656290,0.00506445,114100.0,114090.0,2.00202982]
[1759168656491,0.00506445,114100.0,114090.0,2.01774677]
[1759168657689,0.0223092,114100.0,114090.0,2.01774677]
[1759168658089,0.1098938,114100.0,114090.0,2.01774677]
[1759168659392,0.1098938,114100.0,114090.0,1.61774677]
[1759168660792,0.1098938,114100.0,114090.0,1.55505816]
[1759168664197,0.1098938,114100.0,114090.0,1.6021317]
[1759168674000,0.00506445,114100.0,114090.0,2.0021317]
[1759168674192,0.00506445,114100.0,114090.0,1.95505816]
[1759168674891,0.0875823,114110.0,114100.0,0.1226146]
[1759168675096,0.0875823,114110.0,114100.0,1.68228721]
[1759168676100,0.0875823,114110.0,114100.0,1.63521258]
[1759168676302,0.0875823,114110.0,114100.0,2.33153114]
[1759168676599,0.1075823,114110.0,114100.0,2.33153114]
[1759168676798,0.02,114110.0,114100.0,2.33153114]
[1759168677101,0.08757,114120.0,114110.0,0.03503]
[1759168677299,0.08757,114120.0,114110.0,1.14939459]
[1759168678003,0.08757,114120.0,114110.0,1.23697149]
[1759168678201,0.10057,114120.0,114110.0,1.23697149]
[1759168678502,0.12657,114120.0,114110.0,1.23697149]
[1759168679992,0.039,114120.0,114110.0,1.93816344]
[1759168680196,0.004,114120.0,114110.0,2.00085205]
[1759168680506,0.10497957,114130.0,114120.0,0.1153292]
[1759168680699,0.10497957,114130.0,114120.0,2.37107406]
[1759168681905,0.14197957,114130.0,114120.0,2.37107406]
[1759168684002,0.14197957,114130.0,114120.0,2.3553721]
[1759168684209,0.14197957,114130.0,114120.0,2.40240042]
[1759168684413,0.14197957,114130.0,114120.0,2.3553721]
[1759168687908,0.14197887,114130.0,114120.0,2.3553721]
[1759168689514,0.002,114130.0,114120.0,2.77107406]
[1759168689715,0.0875527,114150.0,114140.0,0.1037039]
[1759168690015,0.10509411,114150.0,114140.0,2.33464826]
[1759168690211,0.10509411,114150.0,114140.0,2.70637527]
[1759168690412,0.01754141,114150.0,114140.0,3.11420022]
[1759168690618,0.01754141,114150.0,114140.0,3.16122854]
[1759168691419,0.01754141,114150.0,114140.0,3.12820022]
[1759168691920,0.01754141,114150.0,114140.0,3.16122854]
[1759168692119,0.01754141,114150.0,114140.0,3.19022854]
[1759168693522,0.01754141,114150.0,114140.0,3.14320022]
[1759168694022,0.01754141,114150.0,114140.0,3.19022854]
[1759168694321,0.01754141,114150.0,114140.0,3.16663323]
[1759168694523,0.10508761,114150.0,114140.0,3.16663323]
[1759168696017,0.10508761,114150.0,114140.0,3.14320022]
[1759168696516,0.10508761,114150.0,114140.0,3.1666204]
[1759168696718,0.10508761,114150.0,114140.0,3.14320022]
[1759168697417,0.10508761,114150.0,114140.0,3.16661837]
[1759168698223,0.10508761,114150.0,114140.0,3.14320022]
[1759168698423,0.10508761,114150.0,114140.0,3.16661766]
[1759168699225,0.10508761,114150.0,114140.0,3.14320022]
[1759168699420,0.10508761,114150.0,114140.0,3.16661909]
[1759168703330,0.10508761,114150.0,114140.0,3.14320022]
[1759168703723,0.0875462,114150.0,114140.0,3.14320022]
[1759168704327,0.0875462,114150.0,114140.0,3.19022854]
[1759168704628,0.10516942,114150.0,114140.0,3.19022854]
[1759168708327,0.10516942,114150.0,114140.0,3.15892876]
[1759168708522,0.10516942,114150.0,114140.0,1.71417222]
[1759168708726,0.10516942,114150.0,114140.0,2.44195733]
[1759168709022,0.10516942,114150.0,114140.0,2.79020951]
[1759168709237,0.10516942,114150.0,114140.0,2.75892876]
[1759168711632,0.51847942,114150.0,114140.0,1.51028268]
[1759168711931,0.51847942,114150.0,114140.0,2.39422298]
[1759168712922,0.03093322,114150.0,114140.0,2.74247516]
[1759168713131,0.01762322,114150.0,114140.0,2.74247516]
[1759168713336,0.01762322,114150.0,114140.0,2.39422298]
[1759168713729,0.01762322,114150.0,114140.0,2.4412513]
[1759168714125,0.01762322,114150.0,114140.0,2.4176994]
[1759168714733,0.10516892,114150.0,114140.0,2.4176994]
[1759168715236,0.11847892,114150.0,114140.0,2.4176994]
[1759168717437,0.11847892,114150.0,114140.0,2.39422298]
[1759168717832,0.01762322,114150.0,114140.0,2.39422298]
[1759168719039,0.10516942,114150.0,114140.0,1.69771862]
[1759168719234,0.10516942,114150.0,114140.0,2.39422298]
[1759168719431,0.10516942,114150.0,114140.0,2.4412513]
[1759168721531,0.01762322,114150.0,114140.0,2.4412513]
[1759168722134,0.01762322,114150.0,114140.0,2.78950348]
[1759168722625,0.01762322,114150.0,114140.0,2.4292513]
[1759168723237,0.10516932,114150.0,114140.0,2.4292513]
[1759168723938,0.10516932,114150.0,114140.0,2.4122513]
[1759168724139,0.10516932,114150.0,114140.0,2.36892816]
[1759168724335,0.01762322,114150.0,114140.0,2.36892816]
[1759168724539,0.19431728,114170.0,114160.0,0.02615]
[1759168724740,0.19431728,114170.0,114160.0,1.91662885]
[1759168725131,0.54256946,114170.0,114160.0,1.91662885]
[1759168725440,0.95994448,114170.0,114160.0,1.56053446]
[1759168725940,0.6116923,114170.0,114160.0,1.57153446]
[1759168726128,0.9686177,114170.0,114160.0,1.58353446]
[1759168726331,0.62036552,114170.0,114160.0,1.58353446]
[1759168726533,0.9686177,114170.0,114160.0,1.58353446]
[1759168727641,0.9686177,114170.0,114160.0,0.78173446]
[1759168734049,1.7702177,114170.0,114160.0,0.78173446]
[1759168734244,1.80173579,114170.0,114160.0,0.78173446]
[1759168735651,1.80173579,114170.0,114160.0,0.40478446]
[1759168735846,1.80173579,114170.0,114160.0,0.033]
[1759168736048,1.80173579,114170.0,114160.0,0.37125218]
[1759168736249,1.80173579,114170.0,114160.0,0.38125218]
[1759168737961,1.80173579,114170.0,114160.0,0.023]
[1759168738262,1.80158788,114170.0,114160.0,0.033]
[1759168738962,1.45348361,114170.0,114160.0,0.04915]
[1759168739261,1.84833534,114170.0,114160.0,0.033]
[1759168741062,1.84833534,114170.0,114160.0,0.023]
[1759168742064,1.84833534,114170.0,114160.0,0.033]
[1759168743665,1.81681725,114170.0,114160.0,0.023]
[1759168744563,2.17761725,114170.0,114160.0,0.023]
[1759168747265,1.81681725,114170.0,114160.0,0.023]
[1759168747469,2.17761725,114170.0,114160.0,0.023]
[1759168748365,2.17725725,114170.0,114160.0,0.023]
[1759168754272,1.82915298,114170.0,114160.0,0.023]
[1759168754573,2.17725725,114170.0,114160.0,0.023]
[1759168756978,2.20876429,114170.0,114160.0,0.023]
[1759168762568,2.17725725,114170.0,114160.0,0.023]
[1759168764173,2.2084555,114170.0,114160.0,0.023]
[1759168765383,2.19353589,114170.0,114160.0,0.023]
[1759168768387,0.1235262,114150.0,114140.0,0.3608]
[1759168768689,0.1235338,114140.0,114130.0,0.3608]
[1759168768889,0.55042042,114140.0,114130.0,0.3708]
[1759168769088,0.17080158,114140.0,114130.0,0.3708]
[1759168769283,0.51890585,114140.0,114130.0,0.3608]
[1759168769489,0.51090585,114140.0,114130.0,0.3708]
[1759168770085,0.51090585,114140.0,114130.0,0.3818]
[1759168770785,0.49490585,114140.0,114130.0,0.3708]
[1759168771989,0.49790585,114140.0,114130.0,0.3708]
[1759168774189,0.45063807,114140.0,114130.0,0.3708]
[1759168778095,0.46063807,114140.0,114130.0,0.3708]
[1759168782798,0.1125338,114140.0,114130.0,0.39387]
[1759168783097,0.46063807,114140.0,114130.0,0.39387]
[1759168783395,1.25119807,114140.0,114130.0,0.39387]
[1759168783597,0.9030938,114140.0,114130.0,0.39387]
[1759168789194,1.25119807,114140.0,114130.0,0.39387]
[1759168792202,1.28266813,114140.0,114130.0,0.39387]
[1759168792496,1.25119807,114140.0,114130.0,0.39387]
[1759168795408,1.25119807,114140.0,114130.0,0.03307]
[1759168795604,1.25119807,114140.0,114130.0,0.39387]
[1759168797109,1.25095807,114140.0,114130.0,0.39387]
[1759168797308,0.93432386,114140.0,114130.0,0.39387]
[1759168798211,0.93432386,114140.0,114130.0,0.41740228]
[1759168799205,0.13400386,114140.0,114130.0,0.41740228]
[1759168799411,0.93424386,114140.0,114130.0,0.41740228]
[1759168800314,0.48225275,114140.0,114130.0,0.74211889]
[1759168800508,0.13400386,114140.0,114130.0,0.76565117]
[1759168800812,0.003,114140.0,114130.0,1.62080377]
[1759168801016,0.02459,114140.0,114130.0,0.97136953]
[1759168801212,0.1121438,114140.0,114130.0,1.23205692]
[1759168801414,0.1260538,114140.0,114130.0,1.17349338]
[1759168801603,0.1260538,114140.0,114130.0,1.26105488]
[1759168802314,0.1260538,114140.0,114130.0,1.28457692]
[1759168802815,0.1260538,114140.0,114130.0,0.93632803]
[1759168803005,0.1260538,114140.0,114130.0,0.88457692]
[1759168803409,0.1260538,114140.0,114130.0,1.28457692]
[1759168803921,0.1260538,114140.0,114130.0,1.19701542]
[1759168804113,0.1260538,114140.0,114130.0,0.39387]
[1759168804114,0.50577275,114140.0,114130.0,0.39387]
[1759168804320,0.50577275,114140.0,114130.0,0.74211889]
[1759168809128,0.47430269,114140.0,114130.0,0.74211889]
[1759168813031,1.27426269,114140.0,114130.0,0.74211889]
[1759168813834,1.27422269,114140.0,114130.0,0.74211889]
[1759168814234,1.27422269,114140.0,114130.0,0.76564093]
[1759168814533,1.27418269,114140.0,114130.0,0.76564093]
[1759168815536,1.27418269,114140.0,114130.0,0.41739204]
[1759168815731,1.27418269,114140.0,114130.0,0.76564093]
[1759168820028,1.27418269,114140.0,114130.0,0.85320243]
[1759168820628,1.27418269,114140.0,114130.0,0.41739204]
[1759168820834,1.27406269,114140.0,114130.0,0.76564093]
[1759168821630,0.47430269,114140.0,114130.0,0.76564093]
[1759168821834,0.9257738,114140.0,114130.0,0.85320243]
[1759168822033,1.27402269,114140.0,114130.0,0.88457692]
[1759168822335,1.29167715,114140.0,114130.0,0.88457692]
[1759168822736,1.29167715,114140.0,114130.0,0.85320243]
[1759168823136,1.29167715,114140.0,114130.0,0.88457692]
[1759168823737,1.29167715,114140.0,114130.0,0.85320243]
[1759168824139,1.29167715,114140.0,114130.0,0.88457692]
[1759168825440,1.29167715,114140.0,114130.0,0.86105488]
[1759168830145,1.29167715,114140.0,114130.0,0.51280599]
[1759168830340,1.29167715,114140.0,114130.0,0.86105488]
[1759168831145,0.49195715,114140.0,114130.0,0.86105488]
[1759168831444,1.29151715,114140.0,114130.0,0.86105488]
[1759168833442,1.29151715,114140.0,114130.0,0.88456818]
[1759168833645,0.49195715,114140.0,114130.0,0.88456818]
[1759168833845,1.29147715,114140.0,114130.0,0.88456818]
[1759168834242,1.29147715,114140.0,114130.0,0.86105488]
[1759168834443,1.29147715,114140.0,114130.0,0.51280599]
[1759168834744,1.29147715,114140.0,114130.0,0.86105488]
[1759168836248,1.29147715,114140.0,114130.0,0.51280599]
[1759168836449,1.29147715,114140.0,114130.0,0.86105488]
[1759168836748,0.49195715,114140.0,114130.0,0.86105488]
[1759168836950,1.29139715,114140.0,114130.0,0.51280599]
[1759168837149,1.29139715,114140.0,114130.0,0.86105488]
[1759168837551,0.94314826,114140.0,114130.0,0.86105488]
[1759168837851,1.29139715,114140.0,114130.0,0.86105488]
[1759168840752,0.49195715,114140.0,114130.0,0.86105488]
[1759168841053,1.29131715,114140.0,114130.0,0.86105488]
[1759168841455,0.49195715,114140.0,114130.0,0.86105488]
[1759168841953,1.29131715,114140.0,114130.0,0.86105488]
[1759168846247,1.29131715,114140.0,114130.0,0.88457442]
[1759168849354,0.94306826,114140.0,114130.0,0.88457442]
[1759168849554,1.29131715,114140.0,114130.0,0.88457442]
[1759168850956,0.94306826,114140.0,114130.0,0.88457442]
[1759168851162,1.29131715,114140.0,114130.0,0.88457442]
[1759168854361,1.32278721,114140.0,114130.0,0.85319993]
[1759168856665,1.32278721,114140.0,114130.0,0.82968039]
[1759168856860,1.32278721,114140.0,114130.0,0.85319993]
[1759168862267,0.97453832,114140.0,114130.0,0.50495104]
[1759168863161,0.17517832,114140.0,114130.0,0.50495104]
[1759168863359,0.97417832,114140.0,114130.0,0.50495104]